[Event "*** Titled Tuesday Blitz"]
[Site "Chess.com"]
[Date "2021.03.09"]
[Round "7"]
[White "SaraciNderim"]
[Black "Grandmaster2B"]
[Result "1-0"]
[WhiteElo "2799"]
[BlackElo "2558"]
[TimeControl "180+1"]
[EndTime "11:22:37 PST"]
[Termination "SaraciNderim won by resignation"]

1. e4 {[%clk 0:03:00.9]} 1... c5 {[%clk 0:02:59.9]} 2. Nf3 {[%clk 0:02:57.9]}
2... d6 {[%clk 0:03:00.1]} 3. d4 {[%clk 0:02:57.1]} 3... cxd4 {[%clk 0:03:01]}
4. Nxd4 {[%clk 0:02:57.7]} 4... Nf6 {[%clk 0:03:01]} 5. Nc3 {[%clk 0:02:57.8]}
5... a6 {[%clk 0:03:00.9]} 6. Bg5 {[%clk 0:02:57.5]} 6... Nbd7 {[%clk
0:03:01.2]} 7. f4 {[%clk 0:02:57.3]} 7... Qc7 {[%clk 0:03:00.5]} 8. Qd2 {[%clk
0:02:56.5]} 8... e6 {[%clk 0:02:59.7]} 9. O-O-O {[%clk 0:02:56.2]} 9... b5
{[%clk 0:02:59.6]} 10. Bxb5 {[%clk 0:02:47.4]} 10... axb5 {[%clk 0:02:59.3]} 11.
Ndxb5 {[%clk 0:02:47.5]} 11... Qb6 {[%clk 0:02:59.3]} 12. Nxd6+ {[%clk
0:02:47.7]} 12... Bxd6 {[%clk 0:03:00.2]} 13. Qxd6 {[%clk 0:02:48.1]} 13... Qxd6
{[%clk 0:03:01.1]} 14. Rxd6 {[%clk 0:02:47.8]} 14... h6 {[%clk 0:02:48]} 15. Bh4
{[%clk 0:02:43.2]} 15... O-O {[%clk 0:02:29.6]} 16. Rhd1 {[%clk 0:02:37.9]}
16... Nc5 {[%clk 0:02:28.4]} 17. Bxf6 {[%clk 0:02:33.5]} 17... gxf6 {[%clk
0:02:29.3]} 18. Rd8 {[%clk 0:01:37.4]} 18... Bb7 {[%clk 0:02:22]} 19. Rxf8+
{[%clk 0:01:36.3]} 19... Kxf8 {[%clk 0:02:22.9]} 20. Rd4 {[%clk 0:01:36.4]}
20... Ke7 {[%clk 0:02:20.2]} 21. g3 {[%clk 0:01:32.8]} 21... h5 {[%clk
0:01:50.4]} 22. Rc4 {[%clk 0:01:31.3]} 22... Rc8 {[%clk 0:01:44.1]} 23. a4
{[%clk 0:01:23.8]} 23... h4 {[%clk 0:01:33.5]} 24. b4 {[%clk 0:01:07.2]} 24...
hxg3 {[%clk 0:01:30.1]} 25. hxg3 {[%clk 0:01:06.4]} 25... Na6 {[%clk 0:01:23.3]}
26. Rxc8 {[%clk 0:01:06.2]} 26... Bxc8 {[%clk 0:01:24.2]} 27. b5 {[%clk
0:01:06.4]} 27... Nc5 {[%clk 0:01:23]} 28. Kd2 {[%clk 0:01:02.2]} 28... Kd6
{[%clk 0:01:19.6]} 29. a5 {[%clk 0:00:59.9]} 29... Kc7 {[%clk 0:01:08.2]} 30.
Ke3 {[%clk 0:00:57.4]} 30... Nb7 {[%clk 0:01:07.2]} 31. a6 {[%clk 0:00:49.6]}
31... Nd6 {[%clk 0:01:05.6]} 32. e5 {[%clk 0:00:40.2]} 32... fxe5 {[%clk
0:00:57.3]} 33. fxe5 {[%clk 0:00:40.3]} 33... Nf5+ {[%clk 0:00:56.1]} 34. Kf4
{[%clk 0:00:38.4]} 34... Kb6 {[%clk 0:00:56.6]} 35. Ne4 {[%clk 0:00:25.1]} 35...
Kxb5 {[%clk 0:00:42.5]} 36. a7 {[%clk 0:00:23.9]} 36... Bb7 {[%clk 0:00:39.2]}
37. Nd6+ {[%clk 0:00:18.4]} 37... Nxd6 {[%clk 0:00:32.9]} 38. exd6 {[%clk
0:00:19.3]} 38... Kc6 {[%clk 0:00:33.4]} 39. Ke5 {[%clk 0:00:19.7]} 39... Kd7
{[%clk 0:00:24.9]} 40. c4 {[%clk 0:00:19]} 40... f5 {[%clk 0:00:16.8]} 41. c5
{[%clk 0:00:18.4]} 41... Ba8 {[%clk 0:00:17.1]} 42. Kf6 {[%clk 0:00:16.4]} 42...
Bb7 {[%clk 0:00:16.8]} 43. Ke5 {[%clk 0:00:16.4]} 43... Ba8 {[%clk 0:00:17.3]}
44. Kd4 {[%clk 0:00:10.8]} 44... Bc6 {[%clk 0:00:11.8]} 45. Ke5 {[%clk
0:00:05.1]} 45... Bd5 {[%clk 0:00:09.7]} 46. Kf4 {[%clk 0:00:02]} 46... Be4
{[%clk 0:00:04.4]} 47. g4 {[%clk 0:00:01.6]} 47... Bd5 {[%clk 0:00:01.7]} 48. g5
{[%clk 0:00:02.5]} 48... Bc4 {[%clk 0:00:01.4]} 49. Ke5 {[%clk 0:00:03.4]} 49...
Bd5 {[%clk 0:00:01.7]} 50. g6 {[%clk 0:00:04.3]} 50... f4 {[%clk 0:00:02]} 51.
g7 {[%clk 0:00:05.2]} 51... f3 {[%clk 0:00:02.8]} 52. g8=Q {[%clk 0:00:06.1]}
52... f2 {[%clk 0:00:03.5]} 53. Qf7+ {[%clk 0:00:05.9]} 53... Kc6 {[%clk
0:00:03.7]} 54. Qxf2 {[%clk 0:00:06.8]} 1-0

[Event "*** Titled Tuesday Blitz"]
[Site "Chess.com"]
[Date "2021.03.09"]
[Round "7"]
[White "Niktlt"]
[Black "Ranindu2003"]
[Result "1-0"]
[WhiteElo "2457"]
[BlackElo "2609"]
[TimeControl "180+1"]
[EndTime "11:22:38 PST"]
[Termination "Niktlt won by checkmate"]

1. c4 {[%clk 0:03:00.9]} 1... e6 {[%clk 0:02:59.6]} 2. Nc3 {[%clk 0:03:00.8]}
2... d5 {[%clk 0:03:00.3]} 3. d4 {[%clk 0:03:00.3]} 3... a6 {[%clk 0:03:00.8]}
4. Nf3 {[%clk 0:02:55.6]} 4... dxc4 {[%clk 0:02:59.6]} 5. a4 {[%clk 0:02:54.7]}
5... Nf6 {[%clk 0:02:58.3]} 6. e3 {[%clk 0:02:53.6]} 6... b6 {[%clk 0:02:58.3]}
7. Bxc4 {[%clk 0:02:53.5]} 7... Bb7 {[%clk 0:02:59]} 8. O-O {[%clk 0:02:54]}
8... Bb4 {[%clk 0:02:59.5]} 9. Be2 {[%clk 0:02:50.9]} 9... O-O {[%clk
0:02:59.4]} 10. Bd2 {[%clk 0:02:51.2]} 10... Qe7 {[%clk 0:02:58.3]} 11. Qb3
{[%clk 0:02:51.2]} 11... Nc6 {[%clk 0:02:55.2]} 12. Rac1 {[%clk 0:02:50.2]}
12... Na5 {[%clk 0:02:53.1]} 13. Qc2 {[%clk 0:02:47.4]} 13... Rac8 {[%clk
0:02:49.8]} 14. Rfd1 {[%clk 0:02:38.4]} 14... c5 {[%clk 0:02:47.4]} 15. dxc5
{[%clk 0:02:35.5]} 15... Rxc5 {[%clk 0:02:48.3]} 16. Be1 {[%clk 0:02:33.8]}
16... Rfc8 {[%clk 0:02:44.4]} 17. Rd4 {[%clk 0:02:33.9]} 17... Nc6 {[%clk
0:02:34.2]} 18. Rh4 {[%clk 0:02:31.7]} 18... h6 {[%clk 0:02:23.9]} 19. Qb3
{[%clk 0:02:28.9]} 19... a5 {[%clk 0:01:50.4]} 20. Rd1 {[%clk 0:02:20.5]} 20...
Ne5 {[%clk 0:01:35.3]} 21. Nxe5 {[%clk 0:02:11.7]} 21... Rxe5 {[%clk 0:01:35.8]}
22. Rhd4 {[%clk 0:02:05]} 22... Rg5 {[%clk 0:01:33.3]} 23. Bf1 {[%clk
0:02:01.1]} 23... e5 {[%clk 0:01:16.3]} 24. R4d2 {[%clk 0:01:52.4]} 24... Bc6
{[%clk 0:00:50.2]} 25. Qc4 {[%clk 0:01:03.5]} 25... Rg4 {[%clk 0:00:34.4]} 26.
Qa6 {[%clk 0:00:58.7]} 26... Bb7 {[%clk 0:00:14.2]} 27. Qxb6 {[%clk 0:00:56.3]}
27... Kh7 {[%clk 0:00:14.9]} 28. Qb5 {[%clk 0:00:37]} 28... Ne4 {[%clk
0:00:12.6]} 29. Nxe4 {[%clk 0:00:31.9]} 29... Bxe4 {[%clk 0:00:12.4]} 30. Rd7
{[%clk 0:00:31.7]} 30... Qg5 {[%clk 0:00:12.4]} 31. g3 {[%clk 0:00:22.8]} 31...
Rh4 {[%clk 0:00:12.4]} 32. Qe2 {[%clk 0:00:15.4]} 32... Bf5 {[%clk 0:00:09]} 33.
R7d5 {[%clk 0:00:13.2]} 33... Rc2 {[%clk 0:00:08.9]} 34. Bd2 {[%clk 0:00:09.6]}
34... Be4 {[%clk 0:00:06.9]} 35. Rb5 {[%clk 0:00:06.8]} 35... Bxd2 {[%clk
0:00:06.8]} 36. Rxd2 {[%clk 0:00:04.8]} 36... Rxd2 {[%clk 0:00:07.5]} 37. Qxd2
{[%clk 0:00:05.7]} 37... Rxh2 {[%clk 0:00:08]} 38. Kxh2 {[%clk 0:00:05.3]} 38...
Qh5+ {[%clk 0:00:08.3]} 39. Bh3 {[%clk 0:00:05.8]} 39... Bf5 {[%clk 0:00:06.9]}
40. g4 {[%clk 0:00:05.9]} 40... Bxg4 {[%clk 0:00:06.9]} 41. Qd3+ {[%clk
0:00:06.5]} 41... f5 {[%clk 0:00:06]} 42. e4 {[%clk 0:00:06.5]} 42... f4 {[%clk
0:00:05.7]} 43. Rxe5 {[%clk 0:00:04.8]} 43... Qxe5 {[%clk 0:00:04.6]} 44. Bxg4
{[%clk 0:00:05.2]} 44... f3+ {[%clk 0:00:05.5]} 45. Kh3 {[%clk 0:00:04.8]} 45...
Qxb2 {[%clk 0:00:04.2]} 46. Bf5+ {[%clk 0:00:05]} 46... Kg8 {[%clk 0:00:03.7]}
47. Qd8+ {[%clk 0:00:05.4]} 47... Kf7 {[%clk 0:00:04.6]} 48. Qd7+ {[%clk
0:00:05.9]} 48... Kf6 {[%clk 0:00:05.1]} 49. Qe6+ {[%clk 0:00:05.6]} 49... Kg5
{[%clk 0:00:05.2]} 50. Qg6+ {[%clk 0:00:05.7]} 50... Kf4 {[%clk 0:00:05.1]} 51.
Qg3# {[%clk 0:00:06.6]} 1-0

[Event "*** Titled Tuesday Blitz"]
[Site "Chess.com"]
[Date "2021.03.09"]
[Round "7"]
[White "miredenizdogan"]
[Black "SanQui14"]
[Result "1-0"]
[WhiteElo "2271"]
[BlackElo "2362"]
[TimeControl "180+1"]
[EndTime "11:22:40 PST"]
[Termination "miredenizdogan won on time"]

1. b4 {[%clk 0:03:00.9]} 1... e5 {[%clk 0:02:59.2]} 2. Bb2 {[%clk 0:03:00.1]}
2... d6 {[%clk 0:02:55.6]} 3. e4 {[%clk 0:02:52.5]} 3... Nf6 {[%clk 0:02:55]} 4.
Nc3 {[%clk 0:02:51.5]} 4... Be7 {[%clk 0:02:55.1]} 5. Nf3 {[%clk 0:02:51.3]}
5... O-O {[%clk 0:02:55.2]} 6. h3 {[%clk 0:02:47.9]} 6... h6 {[%clk 0:02:54.2]}
7. Bc4 {[%clk 0:02:46]} 7... Be6 {[%clk 0:02:53.7]} 8. Qe2 {[%clk 0:02:46.6]}
8... Nc6 {[%clk 0:02:51.3]} 9. a3 {[%clk 0:02:45.3]} 9... Nd4 {[%clk 0:02:50.7]}
10. Nxd4 {[%clk 0:02:45.3]} 10... exd4 {[%clk 0:02:50.8]} 11. Nd5 {[%clk
0:02:45.9]} 11... Re8 {[%clk 0:02:43.6]} 12. O-O {[%clk 0:02:41]} 12... c5
{[%clk 0:02:31.7]} 13. c3 {[%clk 0:02:27.1]} 13... dxc3 {[%clk 0:02:19.1]} 14.
Bxc3 {[%clk 0:02:24.5]} 14... Bxd5 {[%clk 0:02:03.5]} 15. exd5 {[%clk
0:02:14.2]} 15... a6 {[%clk 0:02:03.4]} 16. b5 {[%clk 0:02:01.5]} 16... Nd7
{[%clk 0:02:00.3]} 17. bxa6 {[%clk 0:01:51.3]} 17... bxa6 {[%clk 0:02:00]} 18.
Bxa6 {[%clk 0:01:45.6]} 18... Bf6 {[%clk 0:01:53.7]} 19. Qb5 {[%clk 0:01:40.2]}
19... Rb8 {[%clk 0:01:02.5]} 20. Qa4 {[%clk 0:01:14.3]} 20... Nb6 {[%clk
0:01:01.8]} 21. Qc6 {[%clk 0:01:13.8]} 21... Ra8 {[%clk 0:00:47.2]} 22. Bb5
{[%clk 0:01:01.3]} 22... Re7 {[%clk 0:00:46.9]} 23. a4 {[%clk 0:00:53.5]} 23...
Rc8 {[%clk 0:00:46.2]} 24. a5 {[%clk 0:00:19.7]} 24... Rxc6 {[%clk 0:00:45.7]}
25. dxc6 {[%clk 0:00:20.4]} 25... Na8 {[%clk 0:00:41.9]} 26. a6 {[%clk
0:00:19.6]} 26... Bxc3 {[%clk 0:00:41.2]} 27. dxc3 {[%clk 0:00:19.8]} 27... Qb6
{[%clk 0:00:41.4]} 28. Rfb1 {[%clk 0:00:19.3]} 28... Rc7 {[%clk 0:00:38.5]} 29.
a7 {[%clk 0:00:19.4]} 29... g6 {[%clk 0:00:37.3]} 30. Ba4 {[%clk 0:00:15.8]}
30... Qxa7 {[%clk 0:00:35.4]} 31. Bc2 {[%clk 0:00:16.4]} 31... Qxa1 {[%clk
0:00:25.7]} 32. Rxa1 {[%clk 0:00:17.3]} 32... Nb6 {[%clk 0:00:26.4]} 33. Ra6
{[%clk 0:00:16.1]} 33... Nc8 {[%clk 0:00:19.6]} 34. Be4 {[%clk 0:00:15.3]} 34...
Kg7 {[%clk 0:00:17.9]} 35. c4 {[%clk 0:00:15.8]} 35... Ne7 {[%clk 0:00:17.9]}
36. Bd5 {[%clk 0:00:16.4]} 36... Kf6 {[%clk 0:00:14.9]} 37. f4 {[%clk
0:00:16.3]} 37... Rc8 {[%clk 0:00:13]} 38. Kf2 {[%clk 0:00:16.1]} 38... g5
{[%clk 0:00:12.3]} 39. g3 {[%clk 0:00:15.6]} 39... h5 {[%clk 0:00:11.7]} 40. Kf3
{[%clk 0:00:14.7]} 40... h4 {[%clk 0:00:12.1]} 41. gxh4 {[%clk 0:00:14.6]} 41...
gxf4 {[%clk 0:00:12.1]} 42. Kxf4 {[%clk 0:00:15.5]} 42... Ng6+ {[%clk
0:00:12.4]} 43. Kg4 {[%clk 0:00:15.7]} 43... Ne5+ {[%clk 0:00:12.9]} 44. Kf4
{[%clk 0:00:16.1]} 44... Ke7 {[%clk 0:00:12.8]} 45. Ra7+ {[%clk 0:00:15.6]}
45... Kf6 {[%clk 0:00:12.1]} 46. h5 {[%clk 0:00:15.6]} 46... Rh8 {[%clk
0:00:11.2]} 47. Rd7 {[%clk 0:00:14.2]} 47... Rxh5 {[%clk 0:00:08.7]} 48. Rxd6+
{[%clk 0:00:14.2]} 48... Ke7 {[%clk 0:00:09.2]} 49. c7 {[%clk 0:00:10.3]} 49...
Nd3+ {[%clk 0:00:06.1]} 50. Ke3 {[%clk 0:00:10.2]} 50... Kxd6 {[%clk 0:00:03.1]}
51. c8=Q {[%clk 0:00:10]} 51... Ne5 {[%clk 0:00:03.3]} 52. Qd8+ {[%clk
0:00:08.9]} 52... Nd7 {[%clk 0:00:02.6]} 53. h4 {[%clk 0:00:07.3]} 53... Re5+
{[%clk 0:00:02.3]} 54. Kd3 {[%clk 0:00:06.9]} 54... Rf5 {[%clk 0:00:01.6]} 55.
Kc2 {[%clk 0:00:04.8]} 55... Rh5 {[%clk 0:00:01.5]} 56. Qg8 {[%clk 0:00:03.5]}
1-0

[Event "*** Titled Tuesday Blitz"]
[Site "Chess.com"]
[Date "2021.03.09"]
[Round "7"]
[White "Aradhya2000"]
[Black "Saxar85"]
[Result "1-0"]
[WhiteElo "2572"]
[BlackElo "2766"]
[TimeControl "180+1"]
[EndTime "11:22:41 PST"]
[Termination "Aradhya2000 won on time"]

1. d4 {[%clk 0:03:00.9]} 1... Nf6 {[%clk 0:02:56]} 2. c4 {[%clk 0:03:00.9]} 2...
d6 {[%clk 0:02:54.8]} 3. Nf3 {[%clk 0:03:00.4]} 3... Bg4 {[%clk 0:02:52.4]} 4.
Nc3 {[%clk 0:03:00.2]} 4... g6 {[%clk 0:02:51]} 5. g3 {[%clk 0:02:54.4]} 5...
Bxf3 {[%clk 0:02:47.7]} 6. exf3 {[%clk 0:02:55.3]} 6... Bg7 {[%clk 0:02:47]} 7.
Bg2 {[%clk 0:02:54.8]} 7... O-O {[%clk 0:02:44.2]} 8. O-O {[%clk 0:02:54.9]}
8... c6 {[%clk 0:02:42.7]} 9. d5 {[%clk 0:02:52.6]} 9... Nbd7 {[%clk 0:02:39.6]}
10. f4 {[%clk 0:02:52.6]} 10... Rc8 {[%clk 0:02:39.5]} 11. Be3 {[%clk 0:02:52]}
11... Nb6 {[%clk 0:02:32.8]} 12. Qb3 {[%clk 0:02:32.9]} 12... cxd5 {[%clk
0:02:29]} 13. cxd5 {[%clk 0:02:30.8]} 13... Nfd7 {[%clk 0:02:28.5]} 14. Rfd1
{[%clk 0:02:11.2]} 14... Nc5 {[%clk 0:02:26.9]} 15. Bxc5 {[%clk 0:02:03.7]}
15... Rxc5 {[%clk 0:02:25.6]} 16. Ne4 {[%clk 0:02:03.3]} 16... Rc7 {[%clk
0:02:13.9]} 17. Rac1 {[%clk 0:01:42.4]} 17... Qc8 {[%clk 0:02:13.4]} 18. Rxc7
{[%clk 0:01:40.7]} 18... Qxc7 {[%clk 0:02:13.2]} 19. Bf1 {[%clk 0:01:37.5]}
19... Rc8 {[%clk 0:02:07.3]} 20. Bd3 {[%clk 0:01:37.6]} 20... h6 {[%clk
0:02:02.9]} 21. h4 {[%clk 0:01:26]} 21... Qd7 {[%clk 0:02:02.3]} 22. Nc3 {[%clk
0:01:08.6]} 22... Bxc3 {[%clk 0:01:46.6]} 23. bxc3 {[%clk 0:01:09.5]} 23... Qc7
{[%clk 0:01:45.4]} 24. c4 {[%clk 0:00:58.4]} 24... Qc5 {[%clk 0:01:45.1]} 25. f5
{[%clk 0:00:58.1]} 25... g5 {[%clk 0:01:40.5]} 26. hxg5 {[%clk 0:00:58.1]} 26...
hxg5 {[%clk 0:01:40.4]} 27. Re1 {[%clk 0:00:50.1]} 27... Rc7 {[%clk 0:01:39.6]}
28. Re4 {[%clk 0:00:49.8]} 28... f6 {[%clk 0:01:32.7]} 29. Kg2 {[%clk
0:00:38.9]} 29... Kf8 {[%clk 0:01:32.2]} 30. Qd1 {[%clk 0:00:35]} 30... Qa3
{[%clk 0:01:15.3]} 31. Qe2 {[%clk 0:00:24.1]} 31... Ke8 {[%clk 0:01:02.8]} 32.
Re3 {[%clk 0:00:19.3]} 32... Qc5 {[%clk 0:00:59.9]} 33. Qh5+ {[%clk 0:00:19.1]}
33... Kd7 {[%clk 0:00:44.4]} 34. Qf7 {[%clk 0:00:19.2]} 34... Nc8 {[%clk
0:00:42.1]} 35. Qe6+ {[%clk 0:00:19.2]} 35... Kd8 {[%clk 0:00:41.9]} 36. Qg8+
{[%clk 0:00:19.9]} 36... Kd7 {[%clk 0:00:41.9]} 37. Qe6+ {[%clk 0:00:20.2]}
37... Kd8 {[%clk 0:00:42.1]} 38. Be2 {[%clk 0:00:20.6]} 38... Qd4 {[%clk
0:00:19.9]} 39. Bh5 {[%clk 0:00:03.5]} 39... Rxc4 {[%clk 0:00:18.9]} 40. Qg8+
{[%clk 0:00:03.8]} 40... Kc7 {[%clk 0:00:19.1]} 41. Bf3 {[%clk 0:00:04.5]} 41...
Kb8 {[%clk 0:00:17.9]} 42. Rxe7 {[%clk 0:00:03.9]} 42... a6 {[%clk 0:00:17.8]}
43. Re8 {[%clk 0:00:03.5]} 43... g4 {[%clk 0:00:17.6]} 44. Be4 {[%clk
0:00:03.9]} 44... Ka7 {[%clk 0:00:15.8]} 45. Qxg4 {[%clk 0:00:04.1]} 45... Nb6
{[%clk 0:00:14.8]} 46. Qf3 {[%clk 0:00:04.3]} 46... Nd7 {[%clk 0:00:09.8]} 47.
Re6 {[%clk 0:00:03.6]} 47... Ne5 {[%clk 0:00:09.5]} 48. Qf4 {[%clk 0:00:01.3]}
48... Qxe4+ {[%clk 0:00:09.4]} 49. Qxe4 {[%clk 0:00:02.2]} 49... Rxe4 {[%clk
0:00:09.5]} 50. Rxf6 {[%clk 0:00:02.8]} 50... Nc4 {[%clk 0:00:03.4]} 51. Re6
{[%clk 0:00:03.1]} 51... Rg4 {[%clk 0:00:01.8]} 52. f6 {[%clk 0:00:03.4]} 52...
Rg8 {[%clk 0:00:01.1]} 53. f4 {[%clk 0:00:03.6]} 1-0

[Event "*** Titled Tuesday Blitz"]
[Site "Chess.com"]
[Date "2021.03.09"]
[Round "7"]
[White "QueenOfTactics90"]
[Black "ailime26"]
[Result "0-1"]
[WhiteElo "1978"]
[BlackElo "2086"]
[TimeControl "180+1"]
[EndTime "11:22:41 PST"]
[Termination "ailime26 won on time"]

1. e4 {[%clk 0:02:57.3]} 1... c5 {[%clk 0:02:56]} 2. Nf3 {[%clk 0:02:56.9]} 2...
Nc6 {[%clk 0:02:55.6]} 3. d4 {[%clk 0:02:56.7]} 3... cxd4 {[%clk 0:02:55.5]} 4.
Nxd4 {[%clk 0:02:57.6]} 4... Nf6 {[%clk 0:02:55]} 5. f3 {[%clk 0:02:58.2]} 5...
e5 {[%clk 0:02:55.2]} 6. Nb3 {[%clk 0:02:57.3]} 6... d6 {[%clk 0:02:55.2]} 7. c4
{[%clk 0:02:56.3]} 7... Be7 {[%clk 0:02:47.8]} 8. Nc3 {[%clk 0:02:56.2]} 8...
O-O {[%clk 0:02:45.8]} 9. Be3 {[%clk 0:02:56]} 9... Be6 {[%clk 0:02:40.8]} 10.
Be2 {[%clk 0:02:56.3]} 10... a6 {[%clk 0:02:34.7]} 11. O-O {[%clk 0:02:50.5]}
11... Nh5 {[%clk 0:02:31.2]} 12. g3 {[%clk 0:02:49.3]} 12... f5 {[%clk
0:02:29.8]} 13. exf5 {[%clk 0:02:45.4]} 13... Bxf5 {[%clk 0:02:21.6]} 14. g4
{[%clk 0:02:43]} 14... Bg5 {[%clk 0:02:21.9]} 15. Bf2 {[%clk 0:02:32.1]} 15...
Nf4 {[%clk 0:02:09.8]} 16. gxf5 {[%clk 0:02:26.2]} 16... Bh4 {[%clk 0:02:10]}
17. Bg3 {[%clk 0:02:02.6]} 17... Qg5 {[%clk 0:01:56.7]} 18. Ne4 {[%clk
0:02:00.4]} 18... Qh6 {[%clk 0:01:46.8]} 19. Kh1 {[%clk 0:01:18.3]} 19... Rxf5
{[%clk 0:01:42.2]} 20. Qxd6 {[%clk 0:01:07.9]} 20... Qh5 {[%clk 0:00:28.8]} 21.
Bxf4 {[%clk 0:01:06.1]} 21... Rxf4 {[%clk 0:00:25.5]} 22. Qe6+ {[%clk
0:01:01.8]} 22... Kh8 {[%clk 0:00:24.5]} 23. Rg1 {[%clk 0:00:48.3]} 23... Rxe4
{[%clk 0:00:20.4]} 24. fxe4 {[%clk 0:00:36.4]} 24... Qxe2 {[%clk 0:00:20.8]} 25.
Qg4 {[%clk 0:00:31.8]} 25... Qxg4 {[%clk 0:00:12.3]} 26. Rxg4 {[%clk 0:00:31.2]}
26... Bf6 {[%clk 0:00:12.7]} 27. Rd1 {[%clk 0:00:29.2]} 27... Nd4 {[%clk
0:00:07.1]} 28. Nxd4 {[%clk 0:00:27.9]} 28... exd4 {[%clk 0:00:08]} 29. Kg2
{[%clk 0:00:27.6]} 29... Rc8 {[%clk 0:00:07.5]} 30. b3 {[%clk 0:00:26.2]} 30...
b5 {[%clk 0:00:07.2]} 31. cxb5 {[%clk 0:00:24.7]} 31... axb5 {[%clk 0:00:07.4]}
32. Rd2 {[%clk 0:00:24]} 32... Rc3 {[%clk 0:00:05.4]} 33. Rg3 {[%clk 0:00:23.3]}
33... Rc1 {[%clk 0:00:04.7]} 34. Rgd3 {[%clk 0:00:22]} 34... Kg8 {[%clk
0:00:04.1]} 35. Kf3 {[%clk 0:00:21]} 35... Be5 {[%clk 0:00:03.9]} 36. Kg4 {[%clk
0:00:20.2]} 36... Rf1 {[%clk 0:00:02.8]} 37. Rf3 {[%clk 0:00:19.1]} 37... Rg1+
{[%clk 0:00:02.4]} 38. Kf5 {[%clk 0:00:19]} 38... Bf6 {[%clk 0:00:01.8]} 39. e5
{[%clk 0:00:19.3]} 39... Rg5+ {[%clk 0:00:02.3]} 40. Ke6 {[%clk 0:00:15.3]}
40... Rxe5+ {[%clk 0:00:02.5]} 41. Kd6 {[%clk 0:00:15]} 41... Re1 {[%clk
0:00:02.2]} 42. Rc2 {[%clk 0:00:13]} 42... Kf7 {[%clk 0:00:02.2]} 43. Rc7+
{[%clk 0:00:12.7]} 43... Kg6 {[%clk 0:00:02.3]} 44. Rg3+ {[%clk 0:00:12.4]}
44... Kf5 {[%clk 0:00:02.6]} 45. Rc5+ {[%clk 0:00:10.1]} 45... Re5 {[%clk
0:00:01.4]} 46. Rd3 {[%clk 0:00:07.6]} 46... Ke4 {[%clk 0:00:01.4]} 47. Rd1
{[%clk 0:00:05.7]} 47... Be7+ {[%clk 0:00:01.6]} 0-1

[Event "*** Titled Tuesday Blitz"]
[Site "Chess.com"]
[Date "2021.03.09"]
[Round "7"]
[White "zacachess"]
[Black "chessmachine14"]
[Result "0-1"]
[WhiteElo "2477"]
[BlackElo "2342"]
[TimeControl "180+1"]
[EndTime "11:22:42 PST"]
[Termination "chessmachine14 won by resignation"]

1. e4 {[%clk 0:03:00.9]} 1... c5 {[%clk 0:02:57.3]} 2. Nf3 {[%clk 0:03:00.8]}
2... e6 {[%clk 0:02:56.9]} 3. d4 {[%clk 0:03:01.2]} 3... cxd4 {[%clk 0:02:57.2]}
4. Nxd4 {[%clk 0:03:02.1]} 4... Nf6 {[%clk 0:02:57.5]} 5. Nc3 {[%clk 0:03:02.1]}
5... d6 {[%clk 0:02:57.7]} 6. Be2 {[%clk 0:03:01.4]} 6... Be7 {[%clk 0:02:57.9]}
7. O-O {[%clk 0:03:00.9]} 7... O-O {[%clk 0:02:58.5]} 8. Be3 {[%clk 0:03:01]}
8... Nc6 {[%clk 0:02:58.6]} 9. f4 {[%clk 0:03:01.2]} 9... e5 {[%clk 0:02:59.1]}
10. Nf5 {[%clk 0:02:48.1]} 10... Bxf5 {[%clk 0:02:58.1]} 11. exf5 {[%clk
0:02:49]} 11... exf4 {[%clk 0:02:58.5]} 12. Rxf4 {[%clk 0:02:48]} 12... d5
{[%clk 0:02:58.9]} 13. Nb5 {[%clk 0:02:31.4]} 13... a6 {[%clk 0:02:47.3]} 14.
Nd4 {[%clk 0:02:29.7]} 14... Bc5 {[%clk 0:02:47.6]} 15. c3 {[%clk 0:02:05.4]}
15... Re8 {[%clk 0:02:45.5]} 16. Bf2 {[%clk 0:01:59.8]} 16... Bd6 {[%clk
0:02:40.5]} 17. Rf3 {[%clk 0:01:58.4]} 17... Ng4 {[%clk 0:02:34.8]} 18. Bg3
{[%clk 0:01:08.3]} 18... Nce5 {[%clk 0:02:32.4]} 19. Bxe5 {[%clk 0:00:56.1]}
19... Bxe5 {[%clk 0:02:30.9]} 20. Rh3 {[%clk 0:00:55.7]} 20... Bxd4+ {[%clk
0:01:37.3]} 21. cxd4 {[%clk 0:00:19.6]} 21... Ne3 {[%clk 0:01:36.6]} 22. Qd3
{[%clk 0:00:19.2]} 22... Qg5 {[%clk 0:01:36.7]} 23. Rg3 {[%clk 0:00:15.7]} 23...
Qf4 {[%clk 0:01:18.7]} 24. Rf3 {[%clk 0:00:13.6]} 24... Qe4 {[%clk 0:01:13.8]}
25. Qxe4 {[%clk 0:00:12.6]} 25... Rxe4 {[%clk 0:01:13.9]} 26. Bd3 {[%clk
0:00:13]} 26... Ree8 {[%clk 0:00:59.2]} 27. Re1 {[%clk 0:00:12.4]} 27... Ng4
{[%clk 0:00:56.7]} 28. Rxe8+ {[%clk 0:00:07.3]} 28... Rxe8 {[%clk 0:00:57.6]}
29. g3 {[%clk 0:00:04.9]} 29... Re1+ {[%clk 0:00:56.5]} 30. Kg2 {[%clk 0:00:05]}
30... Rd1 {[%clk 0:00:52]} 31. h3 {[%clk 0:00:04.5]} 31... Rd2+ {[%clk 0:00:52]}
32. Kg1 {[%clk 0:00:04]} 32... Nf6 {[%clk 0:00:47.2]} 33. Re3 {[%clk 0:00:04.1]}
33... Kf8 {[%clk 0:00:44.5]} 34. b3 {[%clk 0:00:03.9]} 34... Rxa2 {[%clk
0:00:44]} 35. Be2 {[%clk 0:00:02.8]} 35... Ne4 {[%clk 0:00:43.2]} 36. Bf3 {[%clk
0:00:02.9]} 36... Nxg3 {[%clk 0:00:26.3]} 37. Bxd5 {[%clk 0:00:02.8]} 37... Ne2+
{[%clk 0:00:26.5]} 38. Kf2 {[%clk 0:00:02.7]} 38... Nc3+ {[%clk 0:00:24.8]} 39.
Kf3 {[%clk 0:00:01.6]} 39... Nxd5 {[%clk 0:00:24.8]} 40. Re5 {[%clk 0:00:02.5]}
40... Ne7 {[%clk 0:00:23.2]} 41. Rc5 {[%clk 0:00:01.5]} 41... Nc6 {[%clk
0:00:22.7]} 42. d5 {[%clk 0:00:01.2]} 42... Nd4+ {[%clk 0:00:22.6]} 43. Ke4
{[%clk 0:00:01.6]} 43... Nxb3 {[%clk 0:00:22.1]} 44. d6 {[%clk 0:00:02]} 44...
Ke8 {[%clk 0:00:20]} 45. Kd5 {[%clk 0:00:02.9]} 45... Ra5 {[%clk 0:00:18.8]} 46.
Rxa5 {[%clk 0:00:02.4]} 46... Nxa5 {[%clk 0:00:18.8]} 47. f6 {[%clk 0:00:03.3]}
47... gxf6 {[%clk 0:00:18.1]} 48. Kc5 {[%clk 0:00:04.2]} 48... Kd7 {[%clk
0:00:17.8]} 49. Kb6 {[%clk 0:00:05.1]} 49... Nc4+ {[%clk 0:00:17.4]} 50. Kc5
{[%clk 0:00:04.9]} 50... b5 {[%clk 0:00:16.8]} 51. Kd5 {[%clk 0:00:05.8]} 51...
Nxd6 {[%clk 0:00:16.7]} 52. Kc5 {[%clk 0:00:06.7]} 52... Nc4 {[%clk 0:00:16.8]}
53. Kb4 {[%clk 0:00:06.7]} 53... Kc6 {[%clk 0:00:16.6]} 54. h4 {[%clk
0:00:07.6]} 54... a5+ {[%clk 0:00:17]} 55. Kc3 {[%clk 0:00:07.4]} 55... Kc5
{[%clk 0:00:17.6]} 56. h5 {[%clk 0:00:08.1]} 56... a4 {[%clk 0:00:18.1]} 57. h6
{[%clk 0:00:09]} 57... b4+ {[%clk 0:00:18.3]} 58. Kc2 {[%clk 0:00:09.9]} 58...
a3 {[%clk 0:00:18.7]} 59. Kc1 {[%clk 0:00:10.8]} 59... b3 {[%clk 0:00:18.5]} 60.
Kb1 {[%clk 0:00:11.7]} 60... Kb4 {[%clk 0:00:16.5]} 61. Ka1 {[%clk 0:00:12.6]}
61... Kc3 {[%clk 0:00:16.2]} 62. Kb1 {[%clk 0:00:13.5]} 62... Ne3 {[%clk
0:00:16.3]} 63. Ka1 {[%clk 0:00:14.4]} 63... Nc2+ {[%clk 0:00:16]} 64. Kb1
{[%clk 0:00:15.3]} 64... a2+ {[%clk 0:00:16.5]} 0-1